fUSD/lending_fUSD_20260118
["ID","MTS","AMOUNT","RATE_DAILY","PERIOD"]
[402567557,1768709441602,-506.32694105,0.00014798,2]
[402567559,1768709441613,-500.0,0.00014798,2]
[402567561,1768709441623,-500.0,0.00014798,2]
[402567563,1768709441633,-500.0,0.00014798,2]
[402567565,1768709441643,-500.0,0.00014798,2]
[402567567,1768709441654,-600.0,0.000148,5]
[402567570,1768709441665,-500.0,0.00014871,2]
[402567572,1768709441675,-500.0,0.00014899,2]
[402567574,1768709441685,-500.0,0.00014899,2]
[402567576,1768709441696,-500.0,0.00014899,2]
[402567578,1768709441706,-500.0,0.00014899,2]
[402567580,1768709441716,-500.0,0.00014899,2]
[402567582,1768709441727,-500.0,0.00014899,2]
[402567584,1768709441738,-500.0,0.00014899,2]
[402567586,1768709441748,-500.0,0.00014899,2]
[402567588,1768709441758,-500.0,0.00014899,2]
[402567591,1768709441769,-500.0,0.00014899,2]
[402567593,1768709441779,-533.20641898,0.00014899,2]
[402567595,1768709441789,-500.0,0.00014899,2]
[402567597,1768709441799,-184.40223428,0.00014899,2]
[402567599,1768709441811,-500.0,0.00014899,2]
[402567601,1768709441821,-500.0,0.00014899,2]
[402567603,1768709441832,-500.0,0.00014899,2]
[402567605,1768709441842,-500.0,0.00014899,2]
[402567607,1768709441852,-500.0,0.00014899,2]
[402567609,1768709441862,-500.0,0.00014899,2]
[402567612,1768709441872,-506.97630376,0.00014899,2]
[402567614,1768709441882,-500.0,0.00014899,2]
[402567616,1768709441893,-500.0,0.00014899,2]
[402567618,1768709441903,-511.86882252,0.00014899,2]
[402567620,1768709441914,-216.74260354,0.000149,2]
[402567622,1768709441924,-1300.0,0.000149,5]
[402567624,1768709441935,-200.0,0.00014966,2]
[402567625,1768709441945,-349.47,0.00015,2]
[402567626,1768709441955,-467.34,0.00015,2]
[402567627,1768709441966,-27485.22779036,0.00015054,2]
[402567628,1768709441976,-21658.35636411,0.00015054,2]
[402567629,1768709441986,-238.67364673,0.00015086,2]
[402567630,1768709441996,-195.0,0.00015086,2]
[402567631,1768709442007,-2822.39837543,0.00015095,2]
[402567632,1768709442017,-4979.04528382,0.00015095,2]
[402567633,1768709442027,-587.0,0.00015122,2]
[402567634,1768709442038,-662.88,0.000152,2]
[402567635,1768709442048,-662.88,0.000152,2]
[402567636,1768709442058,-151.0,0.00015221,2]
[402567637,1768709442068,-151.0,0.00015221,2]
[402567638,1768709442078,-239.45,0.00015221,2]
[402567639,1768709442088,-151.0,0.00015221,2]
[402567640,1768709442099,-151.0,0.00015221,2]
[402567641,1768709442110,-151.0,0.00015283,2]
[402567643,1768709442120,-151.0,0.00015283,2]
[402567645,1768709442130,-151.0,0.00015284,2]
[402567647,1768709442140,-151.0,0.00015284,2]
[402567649,1768709442151,-662.88,0.000153,2]
[402567652,1768709442161,-662.88,0.000153,2]
[402567654,1768709442172,-662.88,0.000153,2]
[402567656,1768709442184,-467.79,0.000153,2]
[402567658,1768709442194,-483.79,0.000153,2]
[402567660,1768709442207,-662.88,0.000153,2]
[402567661,1768709442218,-483.79,0.000153,2]
[402567662,1768709442229,-662.88,0.000153,2]
[402567663,1768709442239,-467.79,0.000153,2]
[402567664,1768709442252,-467.79,0.000153,2]
[402567665,1768709442262,-483.79,0.000153,2]
[402567666,1768709442273,-662.88,0.000153,2]
[402567667,1768709442284,-662.88,0.000153,2]
[402567668,1768709442295,-662.88,0.000153,2]
[402567669,1768709442306,-292.90483439,0.00015309,2]
[402567670,1768709442317,-239.03553082,0.00015337,2]
[402567671,1768709442328,-201.84989659,0.00015338,2]
[402567672,1768709442339,-200.0,0.00015338,2]
[402567673,1768709442349,-500.0,0.00015338,2]
[402567674,1768709442359,-300.0,0.00015365,2]
[402567675,1768709442370,-195.0,0.00015365,2]
[402567676,1768709442381,-600.0,0.00015365,2]
[402567677,1768709442392,-250.0,0.00015365,2]
[402567678,1768709442402,-195.0,0.00015365,2]
[402567679,1768709442412,-600.0,0.00015365,2]
[402567680,1768709442423,-300.0,0.00015365,2]
[402567681,1768709442433,-1558.74728863,0.00015365,2]
[402567682,1768709442444,-255.0,0.00015371,2]
[402567683,1768709442454,-402.24780221,0.00015372,2]
[402567684,1768709442465,-27485.22779036,0.00015409,2]
[402567685,1768709442475,-21658.35636411,0.00015409,2]
[402567686,1768709442486,-250.0,0.00015429,2]
[402567687,1768709442496,-600.0,0.00015429,2]
[402567688,1768709442507,-42634.50605101,0.00015433,2]
[402567689,1768709442517,-225.72,0.0001548,2]
[402567690,1768709442527,-1680.0,0.00015504,2]
[402567691,1768709442538,-7448.35396746,0.00015595,2]
[402567692,1768709442548,-10077.8832,0.00015595,2]
[402567693,1768709442560,-420.0,0.00015602,2]
[402567694,1768709442571,-420.0,0.00015603,2]
[402567695,1768709442583,-1000.0,0.00015714,2]
[402567696,1768709442594,-27485.22779036,0.00015764,2]
[402567697,1768709442604,-21658.35636411,0.00015764,2]
[402567698,1768709442615,-502.43279549,0.00015798,2]
[402567699,1768709442625,-587.0,0.00015809,2]
[402567700,1768709442636,-292.90483439,0.00015827,2]
[402567701,1768709442646,-518.73399907,0.00015832,2]
[402567702,1768709442656,-500.0,0.00015832,2]
[402567703,1768709442666,-500.0,0.00015886,2]
[402567704,1768709442677,-161.0,0.000159,2]
[402567705,1768709442687,-161.0,0.000159,2]
[402567706,1768709442697,-161.0,0.000159,2]
[402567707,1768709442707,-162.96,0.000159,2]
[402567708,1768709442717,-2000.0,0.000159,5]
[402567709,1768709442728,-150.0,0.00016003,2]
[402567710,1768709442740,-150.0,0.00016003,2]
[402567711,1768709442753,-150.0,0.00016003,2]
[402567712,1768709442767,-150.0,0.00016003,2]
[402567713,1768709442779,-150.0,0.00016003,2]
[402567714,1768709442790,-150.0,0.00016003,2]
[402567715,1768709442800,-150.0,0.00016003,2]
[402567716,1768709442812,-150.0,0.00016003,2]
[402567717,1768709442823,-150.0,0.00016003,2]
[402567718,1768709442834,-150.0,0.00016003,2]
[402567719,1768709442846,-150.0,0.00016003,2]
[402567720,1768709442857,-150.0,0.00016003,2]
[402567721,1768709442868,-150.0,0.00016003,2]
[402567722,1768709442878,-150.0,0.00016003,2]
[402567723,1768709442888,-150.0,0.00016003,2]
[402567724,1768709442900,-150.0,0.00016036,2]
[402567725,1768709442911,-150.0,0.00016069,2]
[402567726,1768709442921,-150.0,0.00016092,2]
[402567727,1768709442932,-150.0,0.00016102,2]
[402567728,1768709442943,-150.0,0.00016102,2]
[402567729,1768709442953,-150.0,0.00016107,2]
[402567730,1768709442964,-150.0,0.00016114,2]
[402567731,1768709442975,-27485.22779036,0.00016119,2]
[402567732,1768709442986,-21658.35636411,0.00016119,2]
[402567733,1768709442997,-150.0,0.0001613,2]
[402567734,1768709443007,-150.0,0.00016134,2]
[402567735,1768709443017,-150.0,0.00016151,2]
[402567736,1768709443028,-150.0,0.00016167,2]
[402567737,1768709443039,-150.0,0.00016181,2]
[402567738,1768709443050,-150.0,0.000162,2]
[402567739,1768709443060,-150.0,0.000162,2]
[402567740,1768709443072,-150.0,0.000162,2]
[402567741,1768709443083,-150.0,0.00016212,2]
[402567742,1768709443094,-150.0,0.00016225,2]
[402567743,1768709443106,-150.0,0.00016225,2]
[402567744,1768709443117,-150.0,0.00016233,2]
[402567745,1768709443129,-150.0,0.00016257,2]
[402567746,1768709443140,-150.0,0.00016266,2]
[402567747,1768709443153,-150.0,0.00016269,2]
[402567748,1768709443164,-150.0,0.00016299,2]
[402567749,1768709443174,-150.0,0.00016299,2]
[402567750,1768709443184,-150.0,0.00016299,2]
[402567751,1768709443195,-150.0,0.00016299,2]
[402567756,1768709443208,-161.0,0.000163,2]
[402567757,1768709443885,-150.0,0.00016317,2]
[402567758,1768709443907,-150.0,0.00016332,2]
[402567759,1768709443922,-150.0,0.00016336,2]
[402567760,1768709443931,-500.0,0.00016337,2]
[402567761,1768709443941,-8739.592,0.00016338,2]
[402567762,1768709443950,-292.90483439,0.00016346,2]
[402567763,1768709443960,-500.0,0.00016356,2]
[402567764,1768709443969,-500.0,0.00016356,2]
[402567765,1768709443978,-700.0,0.00016356,2]
[402567766,1768709443988,-150.0,0.00016358,2]
[402567767,1768709443998,-150.0,0.00016358,2]
[402567768,1768709444008,-150.0,0.00016358,2]
[402567769,1768709444017,-150.0,0.00016365,2]
[402567770,1768709444027,-150.0,0.00016384,2]
[402567771,1768709444036,-150.0,0.00016398,2]
[402567772,1768709444046,-150.0,0.00016398,2]
[402567773,1768709444055,-150.0,0.00016398,2]
[402567774,1768709444067,-502.0,0.00016411,2]
[402567775,1768709444078,-150.0,0.00016421,2]
[402567776,1768709444088,-150.0,0.00016431,2]
[402567777,1768709444099,-626.22881488,0.00016434,2]
[402567778,1768709444109,-483.42739922,0.00016437,2]
[402567779,1768709444119,-500.0,0.00016437,2]
[402567780,1768709444128,-500.0,0.00016437,2]
[402567781,1768709444138,-539.42217884,0.00016437,2]
[402567782,1768709444147,-724.79446616,0.00016438,2]
[402567783,1768709444159,-500.0,0.00016438,2]
[402567784,1768709444169,-500.0,0.00016438,2]
[402567785,1768709444178,-500.0,0.00016438,2]
[402567786,1768709444188,-500.0,0.00016438,2]
[402567787,1768709444198,-500.0,0.00016438,2]
[402567788,1768709444211,-500.0,0.00016438,2]
[402567789,1768709444221,-500.0,0.00016438,2]
[402567790,1768709444230,-500.0,0.00016438,2]
[402567791,1768709444240,-500.0,0.00016438,2]
[402567792,1768709444251,-500.0,0.00016438,2]
[402567793,1768709444260,-500.0,0.00016438,2]
[402567794,1768709444269,-500.0,0.00016438,2]
[402567795,1768709444279,-500.0,0.00016438,2]
[402567796,1768709444289,-500.0,0.00016438,2]
[402567797,1768709444299,-500.0,0.00016438,2]
[402567798,1768709444308,-500.0,0.00016438,2]
[402567799,1768709444317,-500.0,0.00016438,2]
[402567800,1768709444327,-500.0,0.00016438,2]
[402567801,1768709444336,-500.0,0.00016438,2]
[402567802,1768709444345,-510.35332913,0.00016438,2]
[402567803,1768709444354,-500.0,0.00016438,2]
[402567804,1768709444363,-526.17,0.00016438,2]
[402567805,1768709444372,-500.0,0.00016438,2]
[402567806,1768709444381,-500.0,0.00016438,2]
[402567807,1768709444391,-500.0,0.00016438,2]
[402567808,1768709444404,-500.0,0.00016438,2]
[402567809,1768709444415,-500.0,0.00016438,2]
[402567810,1768709444425,-500.0,0.00016438,2]
[402567811,1768709444434,-500.0,0.00016438,2]
[402567812,1768709444443,-500.0,0.00016438,2]
[402567813,1768709444452,-500.0,0.00016438,2]
[402567814,1768709444463,-500.0,0.00016438,2]
[402567815,1768709444473,-500.0,0.00016438,2]
[402567816,1768709444482,-500.0,0.00016438,2]
[402567817,1768709444492,-500.0,0.00016438,2]
[402567818,1768709444504,-529.32488313,0.00016438,2]
[402567819,1768709444516,-203.82700208,0.00016438,2]
[402567820,1768709444526,-500.0,0.00016438,2]
[402567821,1768709444536,-500.0,0.00016438,2]
[402567822,1768709444545,-500.0,0.00016438,2]
[402567823,1768709444554,-500.0,0.00016438,2]
[402567824,1768709444563,-500.0,0.00016438,2]
[402567825,1768709444573,-500.0,0.00016438,2]
[402567826,1768709444582,-500.0,0.00016438,2]
[402567827,1768709444591,-500.0,0.00016438,2]
[402567828,1768709444600,-500.0,0.00016438,2]
[402567829,1768709444610,-475.16773791,0.00016438,2]
[402567830,1768709444619,-500.0,0.00016438,2]
[402567831,1768709444628,-500.0,0.00016438,2]
[402567832,1768709444639,-500.0,0.00016438,2]
[402567833,1768709444648,-500.0,0.00016438,2]
[402567834,1768709444658,-500.0,0.00016438,2]
[402567835,1768709444668,-500.0,0.00016438,2]
[402567836,1768709444678,-500.0,0.00016438,2]
[402567837,1768709444689,-500.0,0.00016438,2]
[402567838,1768709444699,-500.0,0.00016438,2]
[402567839,1768709444709,-500.0,0.00016438,2]
[402567840,1768709444718,-640.97,0.00016438,2]
[402567841,1768709444729,-683.44,0.00016438,2]
[402567842,1768709444740,-500.0,0.00016438,2]
[402567843,1768709444751,-1000.0,0.00016438,2]
[402567844,1768709444761,-500.0,0.00016438,2]
[402567845,1768709444771,-500.0,0.00016438,2]
[402567846,1768709444780,-500.0,0.00016438,2]
[402567847,1768709444789,-509.92443044,0.00016438,2]
[402567848,1768709444799,-500.0,0.00016438,2]
[402567849,1768709444808,-500.0,0.00016438,2]
[402567850,1768709444818,-500.0,0.00016438,2]
[402567851,1768709444829,-500.0,0.00016438,2]
[402567852,1768709444839,-500.0,0.00016438,2]
[402567853,1768709444850,-500.0,0.00016438,2]
[402567854,1768709444860,-500.0,0.00016438,2]
[402567855,1768709444872,-500.0,0.00016438,2]
[402567856,1768709444882,-921.31,0.00016438,2]
[402567857,1768709444891,-500.0,0.00016438,2]
[402567858,1768709444901,-511.59113891,0.00016438,2]
[402567859,1768709444911,-500.0,0.00016438,2]
[402567860,1768709444922,-500.0,0.00016438,2]
[402567861,1768709444934,-500.0,0.00016438,2]
[402567862,1768709444943,-500.0,0.00016438,2]
[402567863,1768709444953,-500.0,0.00016438,2]
[402567864,1768709444962,-500.0,0.00016438,2]
[402567865,1768709444972,-500.0,0.00016438,2]
[402567866,1768709444981,-500.0,0.00016438,2]
[402567867,1768709444991,-500.0,0.00016438,2]
[402567868,1768709445000,-500.0,0.00016438,2]
[402567869,1768709445009,-500.0,0.00016438,2]
[402567870,1768709445019,-509.00212753,0.00016438,2]
[402567871,1768709445028,-500.0,0.00016438,2]
[402567872,1768709445038,-632.36,0.00016438,2]
[402567873,1768709445047,-500.0,0.00016438,2]
[402567874,1768709445056,-503.63949916,0.00016438,2]
[402567875,1768709445065,-500.0,0.00016438,2]
[402567876,1768709445075,-500.0,0.00016438,2]
[402567877,1768709445084,-540.14610203,0.00016438,2]
[402567878,1768709445094,-506.1,0.00016438,2]
[402567879,1768709445103,-500.31891653,0.00016438,2]
[402567880,1768709445113,-500.0,0.00016438,2]
[402567881,1768709445122,-500.0,0.00016438,2]
[402567882,1768709445132,-500.0,0.00016438,2]
[402567883,1768709445142,-505.48281513,0.00016438,2]
[402567884,1768709445151,-500.0,0.00016438,2]
[402567885,1768709445161,-500.0,0.00016438,2]
[402567886,1768709445170,-500.0,0.00016438,2]
[402567887,1768709445181,-500.0,0.00016438,2]
[402567888,1768709445191,-500.0,0.00016438,2]
[402567889,1768709445203,-500.0,0.00016438,2]
[402567890,1768709445215,-500.0,0.00016438,2]
[402567891,1768709445227,-500.0,0.00016438,2]
[402567892,1768709445237,-506.04793999,0.00016438,2]
[402567893,1768709445247,-509.79556594,0.00016438,2]
[402567894,1768709445257,-503.30492565,0.00016438,2]
[402567895,1768709445266,-500.0,0.00016438,2]
[402567896,1768709445278,-500.0,0.00016438,2]
[402567897,1768709445288,-500.0,0.00016438,2]
[402567898,1768709445297,-500.0,0.00016438,2]
[402567899,1768709445307,-685.7,0.00016438,2]
[402567900,1768709445317,-500.0,0.00016438,2]
[402567901,1768709445327,-500.0,0.00016438,2]
[402567902,1768709445337,-500.0,0.00016438,2]
[402567903,1768709445346,-500.0,0.00016438,2]
[402567904,1768709445356,-500.0,0.00016438,2]
[402567905,1768709445366,-500.0,0.00016438,2]
[402567906,1768709445375,-500.0,0.00016438,2]
[402567907,1768709445384,-500.0,0.00016438,2]
[402567908,1768709445394,-505.4421982,0.00016438,2]
[402567909,1768709445403,-513.58741327,0.00016438,2]
[402567910,1768709445412,-500.0,0.00016438,2]
[402567911,1768709445422,-500.0,0.00016438,2]
[402567912,1768709445431,-500.0,0.00016438,2]
[402567913,1768709445441,-500.0,0.00016438,2]
[402567914,1768709445449,-500.0,0.00016438,2]
[402567915,1768709445459,-500.0,0.00016438,2]
[402567916,1768709445469,-500.0,0.00016438,2]
[402567917,1768709445478,-509.9800841,0.00016438,2]
[402567918,1768709445488,-500.0,0.00016438,2]
[402567919,1768709445497,-500.0,0.00016438,2]
[402567920,1768709445506,-500.0,0.00016438,2]
[402567921,1768709445517,-500.0,0.00016438,2]
[402567922,1768709445529,-507.60933362,0.00016438,2]
[402567923,1768709445539,-500.0,0.00016438,2]
[402567924,1768709445550,-500.0,0.00016438,2]
[402567925,1768709445560,-500.0,0.00016438,2]
[402567926,1768709445570,-500.0,0.00016438,2]
[402567927,1768709445579,-499.03727827,0.00016438,2]
[402567928,1768709445588,-500.0,0.00016438,2]
[402567929,1768709445597,-567.47631822,0.00016438,2]
[402567930,1768709445606,-500.0,0.00016438,2]
[402567931,1768709445615,-500.0,0.00016438,2]
[402567932,1768709445624,-500.0,0.00016438,2]
[402567933,1768709445634,-500.0,0.00016438,2]
[402567934,1768709445643,-500.0,0.00016438,2]
[402567935,1768709445653,-510.19934726,0.00016438,2]
[402567936,1768709445662,-500.0,0.00016438,2]
[402567937,1768709445672,-540.8,0.00016438,2]
[402567938,1768709445682,-505.53558492,0.00016438,2]
[402567939,1768709445691,-500.0,0.00016438,2]
[402567940,1768709445700,-500.0,0.00016438,2]
[402567941,1768709445710,-672.58,0.00016438,2]
[402567942,1768709445720,-513.67054551,0.00016438,2]
[402567943,1768709445730,-513.12762886,0.00016438,2]
[402567944,1768709445739,-503.83587444,0.00016438,2]
[402567945,1768709445749,-509.3337683,0.00016438,2]
[402567946,1768709445758,-525.03492309,0.00016438,2]
[402567947,1768709445768,-517.18,0.00016438,2]
[402567948,1768709445778,-500.0,0.00016438,2]
[402567949,1768709445787,-500.0,0.00016438,2]
[402567950,1768709445796,-500.0,0.00016438,2]
[402567951,1768709445806,-500.0,0.00016438,2]
[402567952,1768709445815,-500.0,0.00016438,2]
[402567953,1768709445824,-516.1022359,0.00016438,2]
[402567954,1768709445834,-423.08861219,0.00016438,2]
[402567955,1768709445843,-500.0,0.00016438,2]
[402567956,1768709445853,-500.0,0.00016438,2]
[402567957,1768709445863,-500.0,0.00016438,2]
[402567958,1768709445872,-500.0,0.00016438,2]
[402567959,1768709445882,-500.0,0.00016438,2]
[402567960,1768709445891,-500.0,0.00016438,2]
[402567961,1768709445900,-500.0,0.00016438,2]
[402567962,1768709445909,-500.0,0.00016438,2]
[402567963,1768709445919,-500.0,0.00016438,2]
[402567964,1768709445929,-504.32,0.00016438,2]
[402567965,1768709445940,-500.0,0.00016438,2]
[402567966,1768709445950,-500.0,0.00016438,2]
[402567967,1768709445959,-500.0,0.00016438,2]
[402567968,1768709445969,-500.0,0.00016438,2]
[402567969,1768709445978,-500.0,0.00016438,2]
[402567970,1768709445988,-500.0,0.00016438,2]
[402567971,1768709445998,-500.0,0.00016438,2]
[402567972,1768709446008,-500.0,0.00016438,2]
[402567973,1768709446017,-500.0,0.00016438,2]
[402567974,1768709446027,-500.0,0.00016438,2]
[402567975,1768709446037,-500.0,0.00016438,2]
[402567976,1768709446047,-500.0,0.00016438,2]
[402567977,1768709446060,-500.0,0.00016438,2]
[402567978,1768709446069,-500.0,0.00016438,2]
[402567979,1768709446079,-500.0,0.00016438,2]
[402567980,1768709446088,-500.0,0.00016438,2]
[402567981,1768709446097,-500.0,0.00016438,2]
[402567982,1768709446107,-500.0,0.00016438,2]
[402567983,1768709446117,-500.0,0.00016438,2]
[402567984,1768709446126,-500.0,0.00016438,2]
[402567985,1768709446136,-500.0,0.00016438,2]
[402567986,1768709446145,-500.0,0.00016438,2]
[402567987,1768709446155,-500.0,0.00016438,2]
[402567988,1768709446229,-500.0,0.00016438,2]
[402567989,1768709446238,-160.05555775,0.00016438,2]
[402567990,1768709446249,-554.05676245,0.00016438,2]
[402567991,1768709446259,-500.0,0.00016438,2]
[402567992,1768709446268,-500.0,0.00016438,2]
[402567993,1768709446280,-500.0,0.00016438,2]
[402567994,1768709446290,-500.0,0.00016438,2]
[402567995,1768709446299,-500.0,0.00016438,2]
[402567996,1768709446309,-500.0,0.00016438,2]
[402567997,1768709446318,-500.0,0.00016438,2]
[402567998,1768709446327,-500.0,0.00016438,2]
[402567999,1768709446338,-500.0,0.00016438,2]
[402568000,1768709446347,-500.0,0.00016438,2]
[402568001,1768709446356,-506.52123948,0.00016438,2]
[402568002,1768709446366,-500.0,0.00016438,2]
[402568003,1768709446376,-709.44,0.00016438,2]
[402568004,1768709446385,-500.0,0.00016438,2]
[402568005,1768709446395,-500.0,0.00016438,2]
[402568006,1768709446403,-500.0,0.00016438,2]
[402568007,1768709446412,-500.0,0.00016438,2]
[402568008,1768709446422,-500.0,0.00016438,2]
[402568009,1768709446431,-500.0,0.00016438,2]
[402568010,1768709446441,-500.0,0.00016438,2]
[402568011,1768709446451,-500.0,0.00016438,2]
[402568012,1768709446461,-500.0,0.00016438,2]
[402568013,1768709446470,-500.0,0.00016438,2]
[402568014,1768709446479,-500.0,0.00016438,2]
[402568015,1768709446489,-500.0,0.00016438,2]
[402568016,1768709446498,-500.0,0.00016438,2]
[402568017,1768709446507,-500.0,0.00016438,2]
[402568018,1768709446516,-512.84174735,0.00016438,2]
[402568019,1768709446525,-500.0,0.00016438,2]
[402568020,1768709446535,-500.0,0.00016438,2]
[402568021,1768709446544,-500.0,0.00016438,2]
[402568022,1768709446553,-500.0,0.00016438,2]
[402568023,1768709446562,-500.0,0.00016438,2]
[402568024,1768709446572,-500.0,0.00016438,2]
[402568025,1768709446581,-508.80966665,0.00016438,2]
[402568026,1768709446590,-500.0,0.00016438,2]
[402568027,1768709446599,-500.0,0.00016438,2]
[402568028,1768709446608,-500.0,0.00016438,2]
[402568029,1768709446617,-500.0,0.00016438,2]
[402568030,1768709446627,-500.0,0.00016438,2]
[402568031,1768709446636,-500.0,0.00016438,2]
[402568032,1768709446645,-500.0,0.00016438,2]
[402568033,1768709446655,-500.0,0.00016438,2]
[402568034,1768709446664,-500.0,0.00016438,2]
[402568035,1768709446674,-500.0,0.00016438,2]
[402568036,1768709446683,-500.0,0.00016438,2]
[402568038,1768709446692,-500.0,0.00016438,2]
[402568039,1768709446701,-500.0,0.00016438,2]
[402568040,1768709446710,-300.0,0.00016438,2]
[402568041,1768709446719,-500.0,0.00016438,2]
[402568042,1768709446728,-500.0,0.00016438,2]
[402568043,1768709446738,-500.0,0.00016438,2]
[402568044,1768709446749,-500.0,0.00016438,2]
[402568045,1768709446759,-500.0,0.00016438,2]
[402568046,1768709446769,-500.0,0.00016438,2]
[402568047,1768709446779,-500.0,0.00016438,2]
[402568048,1768709446789,-500.0,0.00016438,2]
[402568049,1768709446799,-500.0,0.00016438,2]
[402568050,1768709446809,-500.0,0.00016438,2]
[402568051,1768709446819,-150.00000058,0.00016438,2]
[402568052,1768709446827,-500.0,0.00016438,2]
[402568053,1768709446835,-500.0,0.00016438,2]
[402568054,1768709446843,-500.0,0.00016438,2]
[402568055,1768709446852,-500.0,0.00016438,2]
[402568056,1768709446861,-500.0,0.00016438,2]
[402568057,1768709446870,-500.0,0.00016438,2]
[402568058,1768709446879,-500.0,0.00016438,2]
[402568059,1768709446888,-500.0,0.00016438,2]
[402568060,1768709446897,-500.0,0.00016438,2]
[402568061,1768709446906,-500.0,0.00016438,2]
[402568062,1768709446915,-500.0,0.00016438,2]
[402568063,1768709446924,-500.0,0.00016438,2]
[402568064,1768709446933,-500.0,0.00016438,2]
[402568065,1768709446942,-500.0,0.00016438,2]
[402568066,1768709446950,-500.0,0.00016438,2]
[402568067,1768709446960,-500.0,0.00016438,2]
[402568068,1768709446969,-648.61643335,0.00016438,2]
[402568069,1768709446978,-500.0,0.00016438,2]
[402568070,1768709446988,-500.0,0.00016438,2]
[402568071,1768709446998,-500.0,0.00016438,2]
[402568072,1768709447008,-500.0,0.00016438,2]
[402568073,1768709447017,-500.0,0.00016438,2]
[402568074,1768709447026,-500.0,0.00016438,2]
[402568075,1768709447036,-500.0,0.00016438,2]
[402568076,1768709447044,-500.0,0.00016438,2]
[402568077,1768709447054,-500.0,0.00016438,2]
[402568078,1768709447063,-500.0,0.00016438,2]
[402568079,1768709447072,-500.0,0.00016438,2]
[402568080,1768709447082,-500.0,0.00016438,2]
[402568081,1768709447091,-500.0,0.00016438,2]
[402568082,1768709447100,-500.0,0.00016438,2]
[402568083,1768709447109,-500.0,0.00016438,2]
[402568084,1768709447119,-500.0,0.00016438,2]
[402568085,1768709447129,-500.0,0.00016438,2]
[402568086,1768709447138,-500.0,0.00016438,2]
[402568087,1768709447147,-500.0,0.00016438,2]
[402568088,1768709447157,-500.0,0.00016438,2]
[402568089,1768709447166,-500.0,0.00016438,2]
[402568090,1768709447175,-500.0,0.00016438,2]
[402568091,1768709447185,-500.0,0.00016438,2]
[402568092,1768709447194,-550.58983745,0.00016438,2]
[402568093,1768709447203,-525.64578129,0.00016438,2]
[402568094,1768709447216,-503.97797538,0.00016438,2]
[402568095,1768709447225,-500.0,0.00016438,2]
[402568096,1768709447235,-500.0,0.00016438,2]
[402568097,1768709447247,-500.0,0.00016438,2]
[402568098,1768709447256,-500.0,0.00016438,2]
[402568099,1768709447266,-500.0,0.00016438,2]
[402568100,1768709447277,-500.0,0.00016438,2]
[402568101,1768709447287,-500.0,0.00016438,2]
[402568102,1768709447300,-500.0,0.00016438,2]
[402568103,1768709447311,-1032.57,0.00016438,2]
[402568104,1768709447321,-500.0,0.00016438,2]
[402568105,1768709447330,-500.0,0.00016438,2]
[402568106,1768709447339,-500.0,0.00016438,2]